bitfinex-derivatives/quotes_ETHF0:USTF0_20250612
["timestamp","ask_amount","ask_price","bid_price","bid_amount"]
[1749689530627,0.2886,2771.3,2771.1,0.72151]
[1749689530827,0.2886,2771.3,2771.2,0.7215]
[1749689531129,1.01008,2771.3,2771.1,0.72151]
[1749689531331,0.2886,2771.3,2770.9,0.00541008]
[1749689531630,0.2886,2771.3,2771.2,0.7215]
[1749689536426,0.00541008,2771.4,2771.3,0.72148]
[1749689536632,0.00541008,2771.4,2771.3,3.14278]
[1749689536925,0.00541008,2771.4,2771.3,6.35058]
[1749689537830,5.0978,2772.2,2771.9,0.72132]
[1749689537831,5.32431,2772.0,2771.9,0.72132]
[1749689538028,0.72133,2771.9,2771.8,0.72134]
[1749689538830,5.32431,2772.0,2771.9,0.72132]
[1749689539234,0.72133,2771.9,2771.8,0.72134]
[1749689539529,4.603,2772.0,2771.9,0.72132]
[1749689540033,0.00541008,2772.1,2772.0,0.7213]
[1749689540224,3.2078,2772.5,2771.9,3.2078]
[1749689540426,6.49297217,2772.5,2771.6,4.5073]
[1749689540634,0.72128,2772.1,2772.0,0.72128]
[1749689540828,0.72126,2772.2,2771.7,1.80344]
[1749689541027,0.72126,2772.2,2772.1,0.72126]
[1749689541334,0.72126,2772.2,2772.0,0.72128]
[1749689541633,1.34491008,2772.4,2771.9,3.2078]
[1749689541833,0.72122,2772.3,2771.9,3.2078]
[1749689542024,0.72122,2772.3,2771.9,4.5073]
[1749689542227,0.72124,2772.2,2772.1,0.72125]
[1749689542936,0.72124,2772.3,2772.2,0.72124]
[1749689545229,0.62371008,2772.4,2772.3,0.72122]
[1749689545436,0.72123,2772.3,2772.2,0.72124]
[1749689545631,0.00541008,2772.4,2772.3,0.72122]
[1749689546330,0.72122,2772.3,2772.2,0.72122]
[1749689546837,0.00541008,2772.4,2772.2,0.72122]
[1749689547232,0.00541008,2772.4,2771.4,5.01139]
[1749689547431,0.72123,2772.3,2771.8,1.80338]
[1749689547629,0.00541008,2772.4,2771.8,1.80338]
[1749689547630,0.00541008,2772.4,2772.3,0.72122]
[1749689547835,5.32403,2773.1,2772.9,0.72106]
[1749689548038,4.603,2773.1,2772.9,0.72106]
[1749689548236,3.2078,2773.2,2772.9,0.72106]
[1749689548431,5.32395,2773.4,2772.9,3.92886]
[1749689548629,4.603,2773.4,2772.9,3.92886]
[1749689548834,0.00541008,2773.2,2772.9,3.92886]
[1749689549033,0.72640008,2773.2,2772.9,3.92886]
[1749689549440,0.72102,2773.1,2772.9,3.92886]
[1749689549637,0.00541008,2773.2,2773.1,0.72101]
[1749689549936,0.72641008,2773.2,2773.0,2.01422]
[1749689550242,0.00541008,2773.2,2773.1,0.72101]
[1749689556740,0.00541008,2773.2,2772.9,3.2078]
[1749689557043,0.72109,2772.8,2772.7,0.00541008]
[1749689557443,0.72107,2772.9,2772.8,0.72108]
[1749689557843,2.50571008,2773.2,2772.7,0.00541008]
[1749689557844,0.72109,2772.8,2772.7,0.00541008]
[1749689558940,0.72109,2772.8,2772.1,3.2078]
[1749689558941,0.72124,2772.3,2772.1,3.2078]
[1749689559444,0.72124,2772.2,2772.1,3.2078]
[1749689560341,0.72124,2772.3,2772.1,3.92907]
[1749689560739,4.599,2772.6,2772.1,3.2078]
[1749689560941,0.72116,2772.6,2772.4,0.72117]
[1749689561443,3.2078,2772.5,2771.9,0.00541008]
[1749689561641,0.7213,2772.0,2771.9,0.00541008]
[1749689563242,1.9196,2772.0,2771.9,0.00541008]
[1749689563444,2.20541644,2772.0,2771.9,0.00541008]
[1749689564137,0.7213,2772.0,2771.9,0.00541008]
[1749689564340,5.32028,2772.1,2771.9,0.00541008]
[1749689564742,4.599,2772.1,2771.9,0.00541008]
[1749689564948,5.2297,2772.4,2771.9,0.00541008]
[1749689565141,4.599,2772.4,2772.2,0.72123]
[1749689565340,5.3202,2772.4,2771.9,1.29501008]
[1749689566247,4.599,2772.7,2772.3,0.7212]
[1749689566445,0.72118,2772.5,2772.3,0.7212]
[1749689567244,4.599,2772.7,2772.3,0.7212]
[1749689567245,0.72119,2772.4,2772.3,0.7212]
[1749689567645,0.72118,2772.5,2772.3,0.7212]
[1749689568546,0.72119,2772.4,2772.3,0.7212]
[1749689568848,0.72122,2772.3,2772.2,0.6356]
[1749689569057,0.72121,2772.4,2772.2,0.6356]
[1749689569348,0.72118,2772.5,2772.3,0.72122]
[1749689569549,0.72119,2772.4,2772.3,0.72122]
[1749689570352,0.72118,2772.5,2772.2,0.6356]
[1749689570554,0.72119,2772.4,2772.3,0.7212]
[1749689571247,0.541,2772.6,2772.2,2.53262]
[1749689571446,0.72122,2772.3,2772.2,1.8114]
[1749689571753,0.72122,2772.3,2772.2,0.6356]
[1749689571952,0.72122,2772.3,2772.2,1.35684]
[1749689572748,0.72122,2772.3,2772.2,0.6356]
[1749689572954,0.72129,2772.0,2771.9,0.00541008]
[1749689573759,0.72129,2772.0,2771.9,0.72673008]
[1749689574645,0.72128,2772.1,2772.0,0.72129]
[1749689574850,0.7213,2772.0,2771.9,0.72672008]
[1749689575254,4.599,2772.3,2771.9,0.00541008]
[1749689575459,0.72118,2772.5,2772.4,0.72117]
[1749689575654,0.541,2772.6,2772.5,0.72117]
[1749689575956,0.72106,2772.9,2772.5,3.2078]
[1749689576260,0.72106,2772.9,2772.6,2.4371]
[1749689576453,3.2078,2773.1,2772.6,2.4371]
[1749689576660,0.72106,2772.9,2772.8,0.72109]
[1749689576961,0.72109,2772.8,2772.7,0.7211]
[1749689577453,0.72107,2772.9,2772.8,0.72108]
[1749689578160,3.2078,2773.1,2772.7,0.72109]
[1749689578364,4.4981,2773.1,2772.7,0.72109]
[1749689578867,0.72109,2772.8,2772.7,0.72109]
[1749689579163,0.72109,2772.8,2772.6,3.15823]
[1749689579362,0.72111,2772.7,2772.6,3.15823]
[1749689579761,3.2078,2772.8,2772.2,3.2078]
[1749689579955,0.72118,2772.5,2772.2,5.6927]
[1749689580157,0.72114,2772.6,2772.5,0.72115]
[1749689580362,0.72119,2772.4,2772.3,1.2366]
[1749689580660,0.72119,2772.4,2772.3,0.72122]
[1749689581067,3.8004,2772.8,2772.2,1.2483]
[1749689581258,0.5409,2773.0,2772.3,1.2366]
[1749689581459,0.5409,2773.0,2772.9,0.72106]
[1749689582762,0.5409,2773.0,2772.9,3.14666]
[1749689583366,0.6029172,2773.0,2772.9,3.14666]
[1749689584369,0.5409,2773.0,2772.9,3.14666]
[1749689589173,0.5409,2773.0,2772.9,24.81466]
[1749689592069,0.00541008,2773.2,2773.1,0.72101]
[1749689592374,0.00541008,2773.2,2773.1,3.92881]
[1749689592766,0.2884,2773.6,2773.5,0.72091]
[1749689592973,4.28652341,2773.8,2773.4,17.071]
[1749689593171,4.28653341,2773.8,2773.7,0.72086]
[1749689594074,0.72086,2773.7,2773.6,0.72086]
[1749689594275,3.2078,2773.8,2773.7,0.72086]
[1749689594473,0.00541008,2774.0,2773.5,1.83951008]
[1749689594669,0.00541008,2774.0,2773.9,0.7208]
[1749689595271,0.72619008,2774.0,2773.9,0.7208]
[1749689595473,0.72620008,2774.0,2773.9,0.7208]
[1749689595681,0.72620008,2774.0,2773.8,0.72081]
[1749689595880,0.7208,2773.9,2773.8,0.72081]
[1749689596171,0.72083,2773.8,2773.7,3.2078]
[1749689596478,0.72083,2773.8,2773.7,3.92866]
[1749689596672,0.72081,2773.9,2773.7,3.2078]
[1749689597371,0.00541008,2774.0,2773.8,0.72081]
[1749689597569,0.00541008,2774.0,2773.9,0.7208]
[1749689598076,0.72081,2773.9,2773.8,0.72081]
[1749689598275,0.00541008,2774.0,2773.9,0.7208]
[1749689600173,0.00541008,2774.0,2773.7,3.2078]
[1749689600373,0.72083,2773.8,2773.7,3.2078]
[1749689600777,0.0620172,2773.9,2773.7,3.2078]
[1749689601076,0.0620172,2773.9,2773.8,0.72083]
[1749689601277,0.0620172,2773.9,2773.8,1.99893]
[1749689602578,0.00541008,2774.0,2773.9,0.7208]
[1749689602775,0.00541008,2774.0,2773.9,1.9989]
[1749689604780,0.72083,2773.8,2773.7,3.2078]
[1749689605281,0.72088,2773.6,2773.5,0.00541008]
[1749689606778,0.5906,2773.8,2773.6,0.72087]
[1749689606981,0.61381008,2774.0,2773.5,0.00541008]
[1749689607183,0.7208,2773.9,2773.8,0.72083]
[1749689607382,1.33460008,2774.0,2773.9,0.7208]
[1749689607678,0.00541008,2774.0,2773.9,0.7208]
[1749689608277,0.00541008,2774.0,2773.9,1.9987]
[1749689610783,0.00541008,2774.0,2773.9,6.5917]
[1749689611385,0.00541008,2774.0,2773.8,0.5993]
[1749689611681,0.00541008,2774.0,2773.5,0.00541008]
[1749689611682,0.72088,2773.6,2773.5,0.00541008]
[1749689612075,5.72088,2773.6,2773.5,0.00541008]
[1749689614384,0.72088,2773.6,2773.5,0.00541008]
[1749689615083,1.68589747,2773.6,2773.5,0.00541008]
[1749689616290,0.72088,2773.6,2773.5,0.00541008]
[1749689616490,1.68588478,2773.6,2773.5,0.00541008]
[1749689617090,1.68588819,2773.6,2773.5,0.00541008]
[1749689617584,0.96500819,2773.6,2773.5,0.72632008]
[1749689617786,0.2884,2773.8,2773.7,0.72086]
[1749689618681,0.2884,2773.8,2773.7,2.61846]
[1749689621895,0.72086,2773.7,2773.6,1.36517]
[1749689622885,0.2884,2773.8,2773.7,0.72086]
[1749689622886,1.00925,2773.8,2773.7,0.72086]
[1749689623091,0.72086,2773.7,2773.6,1.36516]
[1749689625097,0.2884,2773.8,2773.7,0.72086]
[1749689625398,1.00923,2773.8,2773.7,0.72086]
[1749689625695,0.72086,2773.7,2773.6,1.36516]
[1749689626197,1.00925,2773.8,2773.7,0.72086]
[1749689626493,0.2884,2773.8,2773.7,0.72086]
[1749689626798,0.2884,2773.8,2773.6,1.36516]
[1749689626987,0.72086,2773.7,2773.6,1.36516]
[1749689627395,1.00924,2773.8,2773.7,0.72086]
[1749689627695,0.2884,2773.8,2773.7,0.72086]
[1749689629298,1.00923,2773.8,2773.7,0.72086]
[1749689629495,0.72086,2773.7,2773.6,1.36517]
[1749689630094,0.72088,2773.6,2773.5,0.00541008]
[1749689631198,0.72088,2773.6,2773.5,0.72632008]
[1749689632889,0.72088,2773.6,2773.5,0.00541008]
[1749689635296,0.72088,2773.6,2773.5,0.72632008]
[1749689635496,0.72088,2773.6,2773.5,0.00541008]
[1749689635900,0.72088,2773.6,2773.5,0.72632008]
[1749689636703,0.72088,2773.6,2773.5,0.00541008]
[1749689636899,1.98728,2773.6,2773.5,0.00541008]
[1749689637102,0.72088,2773.6,2773.5,0.00541008]
[1749689638001,0.5407,2773.7,2773.6,0.72088]
[1749689638401,0.5407,2773.7,2773.6,1.33108]
[1749689638604,1.26156,2773.7,2773.6,1.33108]
[1749689641202,0.5407,2773.7,2773.6,1.33108]
[1749689641607,0.5407,2773.7,2773.6,3.12198]
[1749689642304,0.00541008,2774.0,2773.9,0.7208]
[1749689642704,0.00541008,2774.0,2773.9,1.9037]
[1749689644209,0.29371008,2774.0,2773.9,1.9037]
[1749689646706,0.29371008,2774.0,2773.9,0.7208]
[1749689647297,0.29371008,2774.0,2773.9,2.0005]
[1749689649005,0.29371008,2774.0,2773.9,23.6345]
[1749689649909,1.01449008,2774.0,2773.9,17.7668]
[1749689650208,0.29371008,2774.0,2773.9,17.7668]
[1749689650607,0.29371008,2774.0,2773.9,18.9982]
[1749689652805,2.143372,2775.2,2773.9,23.2774]
[1749689653013,0.72048,2775.2,2774.9,3.2078]
[1749689653307,0.72049,2775.1,2775.0,1.98181]
[1749689653710,0.72049,2775.1,2775.0,0.72051]
[1749689654012,0.00541008,2775.3,2775.0,0.72051]
[1749689654616,0.72049,2775.1,2775.0,0.72051]
[1749689655310,0.72048,2775.2,2775.1,0.72048]
[1749689655913,0.72048,2775.2,2775.0,0.7205]
[1749689656108,0.00541008,2775.3,2774.9,22.1507]
[1749689656314,0.00541008,2775.3,2775.2,0.72047]
[1749689658110,0.00541008,2775.3,2775.2,1.96347]
[1749689659218,0.72028,2775.9,2775.8,0.7203]
[1749689659416,0.72028,2775.9,2775.5,17.038]
[1749689659613,0.72028,2775.9,2775.8,0.72031]
[1749689659815,0.72028,2775.9,2775.7,0.72032]
[1749689660014,0.72036,2775.6,2775.5,17.642]
[1749689660315,0.72036,2775.6,2775.5,0.72038]
[1749689660516,0.72389299,2775.8,2775.6,0.72036]
[1749689660817,0.72034,2775.7,2775.6,0.72036]
[1749689661313,0.72034,2775.7,2775.4,18.9474]
[1749689661822,0.72034,2775.7,2775.6,0.72036]
[1749689662113,0.00357299,2775.8,2775.7,0.72034]
[1749689662816,0.72390299,2775.8,2775.5,3.2078]
[1749689663016,0.72390299,2775.8,2775.7,0.72034]
[1749689663207,0.72035,2775.7,2775.6,0.72035]
[1749689663412,0.72034,2775.7,2775.6,17.035]
[1749689664418,0.72034,2775.7,2775.6,17.75536]
[1749689665315,0.72034,2775.7,2775.6,17.035]
[1749689665921,0.72034,2775.7,2775.6,17.75536]
[1749689666813,0.00357299,2775.8,2775.6,17.035]
[1749689667021,0.72390299,2775.8,2775.7,0.72034]
[1749689667417,0.00357299,2775.8,2775.7,0.72034]
[1749689667923,0.72388299,2775.8,2775.7,0.72034]
[1749689668123,0.00357299,2775.8,2775.7,0.72034]
[1749689668324,0.72388299,2775.8,2775.7,0.72034]
[1749689668619,0.72034,2775.7,2775.6,19.02475]
[1749689668814,0.72036,2775.6,2775.5,3.2078]
[1749689669014,0.72036,2775.6,2775.5,20.2378]
[1749689669618,0.72036,2775.6,2775.5,20.95819]
[1749689670019,0.72036,2775.7,2775.6,0.72035]
[1749689670417,0.72036,2775.6,2775.5,3.2078]
[1749689670610,0.72036,2775.6,2775.4,0.6134]
[1749689670611,0.72039,2775.5,2775.4,17.029]
[1749689670925,0.7823972,2775.6,2775.5,0.72039]
[1749689671515,0.72039,2775.5,2775.4,17.74941]
[1749689672317,0.62787299,2775.8,2775.4,17.029]
[1749689672515,0.72039,2775.5,2775.4,17.029]
[1749689672714,3.2078,2775.7,2775.4,17.027]
[1749689673022,0.72039,2775.5,2775.4,17.027]
[1749689673217,0.72049,2775.1,2775.0,3.8258]
[1749689673414,0.72048,2775.2,2775.0,3.8258]
[1749689673617,0.7824772,2775.3,2775.2,0.72047]
[1749689673817,0.72047,2775.2,2775.1,0.72047]
[1749689674013,0.7824672,2775.3,2775.2,0.72047]
[1749689674523,1.2526,2775.6,2775.0,5.8072]
[1749689674524,0.72047,2775.2,2775.0,5.8072]
[1749689674730,1.2526,2775.6,2775.1,0.72048]
[1749689675224,0.72047,2775.2,2775.1,0.72048]
[1749689675612,0.72049,2775.1,2775.0,3.8258]
[1749689675819,0.72049,2775.1,2775.0,3.2078]
[1749689677125,0.72054,2774.9,2774.8,0.00541008]
[1749689679222,0.72054,2774.9,2774.8,0.72598008]
[1749689679528,0.72054,2774.9,2774.8,0.00541008]
[1749689681522,3.92834,2774.9,2774.8,0.00541008]
[1749689682028,4.88124735,2774.9,2774.8,0.00541008]
[1749689682530,0.95290735,2774.9,2774.8,17.75098008]
[1749689682724,0.00357299,2775.8,2774.8,22.03041008]
[1749689682924,0.72388299,2775.8,2775.7,3.2078]
[1749689683226,0.00357299,2775.8,2775.7,3.92814]
[1749689683616,0.00357299,2775.8,2775.7,8.49914]
[1749689683820,0.72019,2776.3,2776.1,0.72023]
[1749689684025,0.7821772,2776.4,2776.2,0.72019]
[1749689684928,0.72021,2776.2,2776.1,3.2078]
[1749689685424,0.72017,2776.4,2776.2,0.72021]
[1749689685831,0.72017,2776.4,2776.2,2.00091]
[1749689686730,0.72014,2776.5,2776.3,0.72016]
[1749689687029,0.72015,2776.4,2776.3,1.8635]
[1749689689830,0.72021,2776.2,2776.1,3.21321008]
[1749689690135,0.72021,2776.2,2776.1,20.23221008]
[1749689690634,3.8124,2776.6,2776.1,3.93342008]
[1749689690833,3.8124,2776.6,2776.1,5.20982008]
[1749689691427,0.72021,2776.2,2776.1,4.48961008]
[1749689691632,0.72021,2776.2,2776.1,0.00541008]
[1749689693430,1.90331,2776.2,2776.1,0.00541008]
[1749689694631,6.90331,2776.2,2776.1,0.00541008]
[1749689695833,0.72036,2775.6,2775.5,4.57]
[1749689696338,0.72039,2775.5,2775.4,0.644]
[1749689697935,0.72044,2775.3,2775.2,0.00541008]
[1749689698327,0.72044,2775.3,2775.2,1.20161008]
[1749689699140,0.72044,2775.3,2775.2,0.00541008]
[1749689701234,0.72044,2775.3,2775.2,0.72588008]
[1749689701538,0.72044,2775.3,2775.2,0.00541008]
[1749689701740,0.72044,2775.3,2775.2,1.23841008]
[1749689703843,0.72044,2775.3,2775.2,0.00541008]
[1749689709539,8.92824,2775.3,2775.2,8e-08]
[1749689709745,0.7207,2774.3,2774.2,3.859]
[1749689710336,0.7207,2774.3,2774.2,5.82103]
[1749689710540,0.72069,2774.4,2774.3,0.72069]
[1749689710736,0.00541008,2774.5,2774.3,1.2413]
[1749689710941,0.72067,2774.4,2774.3,1.96199]
[1749689711143,0.7207,2774.3,2774.2,3.859]
[1749689712249,0.7207,2774.3,2774.2,0.6512]
[1749689713350,0.72075,2774.1,2774.0,0.61531008]
[1749689714549,0.72075,2774.1,2774.0,1.90591008]
[1749689715347,0.5406,2774.3,2774.2,0.72073]
[1749689715751,1.2613,2774.3,2774.2,0.72073]
[1749689716053,0.72073,2774.2,2774.1,3.2078]
[1749689716548,0.5406,2774.3,2774.0,0.61531008]
[1749689716749,0.5406,2774.3,2774.0,1.85541008]
[1749689716956,0.5406,2774.3,2774.0,2.57617008]
[1749689717359,0.72075,2774.2,2774.1,0.72075]
[1749689718863,1.61965153,2774.3,2774.2,0.72073]
[1749689719163,0.35834153,2774.3,2774.2,0.72073]
[1749689719352,0.7207,2774.3,2774.2,0.72073]
[1749689719554,0.60591008,2774.5,2774.1,0.72074]
[1749689719555,0.72074,2774.2,2774.1,0.72074]
[1749689720657,0.72075,2774.1,2774.0,2.57617008]
[1749689720856,0.72074,2774.2,2774.1,0.72074]
[1749689722556,0.72072,2774.3,2774.2,0.72072]
[1749689722963,1.61521295,2774.3,2774.2,0.72072]
[1749689724158,0.5406,2774.3,2774.2,0.72072]
[1749689724354,0.5406,2774.3,2774.0,1.85541008]
[1749689724661,0.72093,2773.4,2773.3,3.2078]
[1749689724859,0.72104,2773.0,2772.9,1.3046]
[1749689725163,0.72119,2772.4,2772.3,3.2078]
[1749689725370,0.7213,2772.0,2771.9,3.2078]
[1749689725664,0.00541008,2772.2,2772.0,0.72129]
[1749689725864,0.72666008,2772.2,2772.1,1.2878]
[1749689726258,0.7213,2772.0,2771.9,3.2078]
[1749689726458,1.00279441,2772.0,2771.9,3.2078]
[1749689726663,0.00541008,2772.2,2771.7,0.59531008]
[1749689726864,0.72135,2771.8,2771.7,0.59531008]
[1749689727665,0.72135,2771.8,2771.7,0.00541008]
[1749689731568,0.72148,2771.3,2771.2,3.7977]
[1749689732261,0.72147,2771.4,2771.2,3.7977]
[1749689732568,5.1999,2771.8,2771.2,3.7977]
[1749689732768,4.567,2771.8,2771.3,1.2977]
[1749689732968,0.72148,2771.3,2771.2,3.7977]
[1749689733264,0.72148,2771.3,2771.2,0.5899]
[1749689734764,5.7926,2771.8,2771.2,1.31139]
[1749689734765,9.0004,2771.8,2771.2,1.31139]
[1749689734966,0.72146,2771.4,2771.2,1.31139]
[1749689735170,9.0004,2771.8,2771.2,1.31139]
[1749689735171,0.72148,2771.3,2771.2,0.5899]
[1749689735366,0.72147,2771.4,2771.2,1.31139]
[1749689735865,0.72148,2771.3,2771.2,0.5899]
[1749689736468,0.72148,2771.3,2771.2,1.31141]
[1749689736768,0.72148,2771.3,2771.2,0.5899]
[1749689737170,0.72148,2771.3,2771.2,1.31141]
[1749689737677,0.72148,2771.3,2771.2,0.5899]
[1749689737877,0.72148,2771.3,2771.2,1.31141]
[1749689738169,0.72147,2771.4,2771.3,0.72148]
[1749689738366,0.72147,2771.4,2771.3,1.94828]
[1749689738771,0.72147,2771.4,2771.3,1.2268]
[1749689738970,0.72147,2771.4,2771.3,1.94828]
[1749689739172,0.72147,2771.4,2771.3,1.2268]
[1749689739368,0.72147,2771.4,2771.3,1.94828]
[1749689739972,0.72147,2771.4,2771.3,1.2268]
[1749689740167,0.72147,2771.4,2771.3,1.94828]
[1749689740373,0.72147,2771.4,2771.3,1.2268]
[1749689740871,0.72148,2771.3,2771.2,0.5899]
[1749689741070,0.72153,2771.1,2771.0,3.21321008]
[1749689741374,0.72153,2771.1,2771.0,0.00541008]
[1749689741375,3.92933,2771.1,2771.0,0.00541008]
[1749689742576,5.90127,2771.4,2771.0,0.00541008]
[1749689742868,0.72149,2771.3,2771.0,0.00541008]
[1749689743374,0.72149,2771.3,2771.2,0.7215]
[1749689744172,0.5412,2771.5,2771.4,0.72145]
[1749689744871,0.35819345,2771.9,2771.4,5.0]
[1749689745175,0.72145,2771.4,2771.2,1.31779]
[1749689745475,0.72147,2771.4,2771.2,1.8759]
[1749689745677,0.72144,2771.5,2771.4,0.72145]
[1749689746276,3.8003,2771.8,2771.2,0.5963]
[1749689746473,3.8003,2771.8,2771.3,1.2796]
[1749689746779,0.72138,2771.7,2771.6,0.72139]
[1749689747077,0.72137,2771.8,2771.7,0.72137]
[1749689747479,0.36579292,2771.9,2771.5,1.246]
[1749689747673,4.85231898,2772.0,2771.5,1.9674]
[1749689748075,0.72139,2771.7,2771.6,0.7214]
[1749689748372,1.00999,2771.7,2771.6,0.7214]
[1749689748579,0.7214,2771.6,2771.5,1.96741]
[1749689749078,1.00999,2771.7,2771.6,0.7214]
[1749689750780,0.7214,2771.6,2771.5,1.9674]
[1749689750972,0.7214,2771.6,2771.5,1.96742]
[1749689751170,1.00998,2771.7,2771.6,0.7214]
[1749689751477,0.2886,2771.7,2771.6,0.7214]
[1749689751783,0.00541008,2772.2,2771.7,1.8034]
[1749689751978,0.00541008,2772.2,2772.1,0.72127]
[1749689752180,0.00541008,2772.2,2772.1,5.72127]
[1749689752381,0.00541008,2772.2,2772.1,0.72127]
[1749689752585,0.00541008,2772.2,2772.1,1.34107]
[1749689757089,9.053122,2773.0,2772.1,1.34107]
[1749689757090,3.48957705,2773.6,2773.3,0.72096]
[1749689757385,1.52426925,2773.4,2773.3,0.72096]
[1749689757689,0.5408,2773.4,2773.3,5.72096]
[1749689758085,0.5408,2773.4,2773.3,6.99796]
[1749689758787,0.00541008,2773.6,2773.5,0.72091]
[1749689758992,0.00541008,2773.6,2773.5,3.92871]
[1749689759293,0.00541008,2773.6,2773.5,8.92871]
[1749689759493,0.00541008,2773.6,2773.5,3.92871]
[1749689763090,5.164,2774.4,2774.2,0.72072]
[1749689763091,0.603,2774.4,2774.2,0.72072]
[1749689763294,0.72069,2774.4,2774.2,0.72071]
[1749689763689,5.1005,2774.9,2774.0,20.2148]
[1749689763894,0.5405,2774.9,2774.8,0.72057]
[1749689764085,0.5405,2774.9,2774.8,17.72557]
[1749689764292,0.5405,2774.9,2774.8,17.005]
[1749689764600,0.7206,2774.7,2774.6,3.21321008]
[1749689764798,0.7206,2774.7,2774.6,0.00541008]
[1749689766096,0.7206,2774.7,2774.6,0.72603008]
[1749689766297,0.7206,2774.7,2774.6,0.00541008]
[1749689767094,1.9264,2774.7,2774.6,0.00541008]
[1749689770996,10.7648,2774.7,2774.0,3.2078]
[1749689771301,0.72086,2773.7,2773.6,3.2078]
[1749689771504,5.00954,2774.4,2773.8,0.72081]
[1749689771505,0.7208,2774.0,2773.8,0.72081]
[1749689771896,0.7208,2773.9,2773.8,0.72081]
[1749689772202,0.72083,2773.8,2773.7,1.92314]
[1749689773702,0.72083,2773.8,2773.7,1.2023]
[1749689774302,0.72082,2773.9,2773.7,1.92313]
[1749689774899,0.72086,2773.7,2773.6,3.21321008]
[1749689775197,3.2078,2774.0,2773.7,0.72084]
[1749689775392,0.72081,2773.9,2773.7,0.72084]
[1749689775593,0.72081,2773.9,2773.7,3.92864]
[1749689775791,0.72081,2773.9,2773.7,5.15824]
[1749689776104,0.72081,2773.9,2773.8,0.72083]
[1749689776303,0.6159,2774.2,2773.8,0.72082]
[1749689776902,0.72082,2773.9,2773.7,5.15824]
[1749689777193,0.72082,2773.9,2773.8,0.72083]
[1749689777399,0.72076,2774.1,2774.0,0.72076]
[1749689777600,0.6159,2774.2,2773.8,1.2496]
[1749689777899,0.72078,2774.1,2774.0,0.72078]
[1749689778103,0.72078,2774.0,2773.9,1.36979]
[1749689778697,0.72078,2774.0,2773.9,0.649]
[1749689779801,0.72083,2773.8,2773.7,20.2008]
[1749689780303,0.72082,2773.9,2773.8,0.72083]
[1749689780710,3.8237,2774.2,2773.7,20.92164]
[1749689780898,0.72083,2773.8,2773.7,3.2078]
[1749689781098,0.72083,2773.8,2773.6,0.00541008]
[1749689781297,0.72083,2773.8,2773.6,1.22081008]
[1749689781693,0.72083,2773.8,2773.7,0.72086]
[1749689782102,0.72079,2774.0,2773.9,0.72079]
[1749689782305,0.72081,2773.9,2773.8,0.72081]
[1749689782605,0.72083,2773.8,2773.7,0.72084]
[1749689783602,0.72082,2773.9,2773.8,0.72082]
[1749689784101,0.72082,2773.9,2773.6,1.22081008]
[1749689784298,3.8237,2774.2,2773.8,0.72082]
[1749689784907,5.0759,2774.2,2773.8,0.72082]
[1749689785502,0.72082,2773.9,2773.8,0.72082]
[1749689786306,0.72085,2773.8,2773.7,0.72085]
[1749689786508,0.72086,2773.7,2773.6,17.71627008]
[1749689786702,0.72084,2773.8,2773.7,0.72084]
[1749689787907,3.8237,2774.2,2773.6,16.99541008]
[1749689788097,0.96224053,2774.1,2773.7,1.2391]
[1749689788300,0.72079,2774.0,2773.9,0.72078]
[1749689788706,3.8237,2774.2,2773.8,0.5945]
[1749689788906,0.7208,2773.9,2773.8,0.5945]
[1749689789201,0.72086,2773.7,2773.6,16.99441008]
[1749689789408,0.72086,2773.7,2773.6,0.00541008]
[1749689789801,1.68322792,2773.7,2773.6,0.00541008]
[1749689790201,2.30182792,2773.7,2773.6,0.00541008]
[1749689792407,1.33946,2773.7,2773.6,0.00541008]
[1749689792708,1.63094766,2773.7,2773.6,0.00541008]
[1749689794408,1.33946,2773.7,2773.6,0.00541008]
[1749689796407,1.62654513,2773.7,2773.6,0.00541008]
[1749689798407,2.58852668,2773.7,2773.6,0.00541008]
[1749689799007,2.58851551,2773.7,2773.6,0.00541008]
[1749689801714,1.62654513,2773.7,2773.6,0.00541008]
[1749689802317,2.58916748,2773.7,2773.6,0.00541008]
[1749689802510,1.62654513,2773.7,2773.6,0.00541008]
[1749689803214,1.62654513,2773.7,2773.6,0.72629008]
[1749689803609,0.72084,2773.8,2773.6,0.00541008]
[1749689803914,0.72082,2773.9,2773.8,0.72081]
[1749689804116,1.68319319,2773.9,2773.8,0.72081]
[1749689806219,0.96237319,2773.9,2773.6,0.63991008]
[1749689806416,0.72085,2773.8,2773.7,0.72084]
[1749689808016,0.72085,2773.8,2773.7,1.99214]
[1749689809214,0.72082,2773.9,2773.8,0.72081]
[1749689809415,0.72079,2774.0,2773.9,0.72078]
[1749689809615,0.6242,2774.3,2773.9,1.2713]
[1749689809812,1.68309001,2774.2,2774.1,0.72075]
[1749689810121,1.68309001,2774.2,2774.1,1.99205]
[1749689810417,0.72073,2774.2,2774.1,1.99205]
[1749689810615,1.68300917,2774.2,2774.1,1.2713]
[1749689810820,1.68300917,2774.2,2774.1,1.99205]
[1749689811411,0.72073,2774.2,2774.1,1.99205]
[1749689811616,1.68293396,2774.2,2774.1,1.99205]
[1749689812420,0.72073,2774.2,2774.1,1.99205]
[1749689816823,0.72073,2774.2,2774.1,2.64185]
[1749689818916,3.60182,2775.7,2774.6,0.72062]
[1749689818917,0.5405,2774.7,2774.6,0.72062]
[1749689819120,3.2078,2774.8,2774.7,0.7206]
[1749689819318,4.16488734,2774.8,2774.7,0.7206]
[1749689819519,3.2078,2774.8,2774.7,0.7206]
[1749689819713,0.72073,2774.2,2774.1,0.6498]
[1749689820124,1.80156,2774.6,2774.1,0.6498]
[1749689820125,0.72072,2774.3,2774.2,0.72072]
[1749689820322,0.72073,2774.2,2774.1,0.6498]
[1749689820625,0.72073,2774.2,2773.7,3.2078]
[1749689820626,0.72083,2773.8,2773.7,3.2078]